bitfinex-derivatives/quotes_ETHF0:USTF0_20250817
["timestamp","ask_amount","ask_price","bid_price","bid_amount"]
[1755442529128,0.2381,4553.5,4553.4,22.6368449]
[1755442529333,0.2381,4553.5,4553.4,22.5612449]
[1755442529732,0.2381,4553.5,4553.4,23.1191449]
[1755442530035,0.2381,4553.5,4553.4,23.1947449]
[1755442530231,3.2078,4554.1,4554.0,0.5391]
[1755442530434,0.786,4554.4,4554.3,0.5391]
[1755442530739,1.1801,4554.4,4554.3,21.361]
[1755442531036,1.4147,4554.4,4554.3,23.1151449]
[1755442531235,1.1801,4554.4,4554.3,23.1151449]
[1755442531438,1.0241,4554.4,4554.3,23.1151449]
[1755442531640,1.1801,4554.4,4554.3,23.1151449]
[1755442531938,1.4147,4554.4,4554.3,23.1151449]
[1755442532939,0.4068,4553.8,4553.7,3.7469]
[1755442533136,1.1801,4553.8,4553.7,22.5542449]
[1755442533339,1.1801,4553.8,4553.7,22.9932349]
[1755442533540,1.1801,4553.8,4553.7,23.1121449]
[1755442533936,1.1801,4553.8,4553.7,20.423]
[1755442533937,1.4147,4553.8,4553.7,20.423]
[1755442534534,1.4147,4553.8,4553.7,20.6585]
[1755442535041,1.4147,4553.8,4553.7,20.9809]
[1755442535338,1.4147,4553.8,4553.7,0.7209]
[1755442535543,1.4147,4553.8,4553.7,20.9809]
[1755442535844,1.4147,4553.8,4553.7,20.9789]
[1755442536345,1.4147,4553.8,4553.7,0.7209]
[1755442536645,1.4147,4553.8,4553.7,20.9789]
[1755442537037,1.4147,4553.8,4553.7,0.7209]
[1755442537340,1.4147,4553.8,4553.7,20.9789]
[1755442537944,1.4147,4553.8,4553.7,20.9779]
[1755442538544,1.4147,4553.8,4553.7,20.257]
[1755442538841,1.4147,4553.8,4553.7,20.6555]
[1755442539042,1.4147,4553.8,4553.7,20.9779]
[1755442539441,0.3168,4553.4,4553.3,2.0380449]
[1755442539643,1.4147,4553.4,4553.3,23.1081449]
[1755442540742,1.4147,4554.1,4554.0,0.163]
[1755442541041,1.4147,4554.1,4554.0,22.7310449]
[1755442541246,1.4147,4554.1,4554.0,23.1071449]
[1755442541542,1.1801,4554.1,4554.0,23.1071449]
[1755442541742,1.4147,4554.1,4554.0,23.1071449]
[1755442542446,1.4147,4553.8,4553.7,0.163]
[1755442542637,1.4147,4553.8,4553.7,20.255]
[1755442543143,0.942,4553.8,4553.7,0.3985]
[1755442543337,0.5628,4553.8,4553.2,4.9619449]
[1755442543537,0.5628,4553.8,4553.3,20.254]
[1755442543738,0.5628,4553.8,4553.4,0.5579]
[1755442543945,0.402,4553.6,4553.5,21.351]
[1755442544146,1.4147,4553.6,4553.5,23.1051449]
[1755442544341,0.6449,4553.6,4553.5,23.1051449]
[1755442544541,1.0241,4553.6,4553.5,23.1051449]
[1755442544741,1.4147,4553.6,4553.5,23.1051449]
[1755442547447,1.4147,4553.6,4553.5,22.4066449]
[1755442547947,1.4147,4553.6,4553.5,20.6505]
[1755442548245,1.4147,4553.6,4553.5,0.3985]
[1755442548443,0.5628,4553.6,4553.5,20.251]
[1755442549043,1.4117,4553.6,4553.5,20.251]
[1755442549244,1.4117,4553.6,4553.5,20.6649]
[1755442549546,1.4117,4553.6,4553.5,20.9869]
[1755442549740,0.9255,4553.6,4553.2,3.2078]
[1755442549947,1.4201,4553.3,4553.2,5.3758449]
[1755442550141,1.4201,4553.3,4553.2,25.6258449]
[1755442550347,0.5712,4553.3,4552.9,0.5729]
[1755442550552,0.5712,4553.3,4553.0,20.25]
[1755442551047,1.4201,4553.1,4553.0,20.25]
[1755442551244,0.5712,4552.9,4552.6,0.5729]
[1755442551451,1.4201,4552.8,4552.7,20.4999]
[1755442551845,1.4201,4552.8,4552.7,20.6629]
[1755442552045,1.4201,4552.8,4552.7,20.9849]
[1755442552244,1.4201,4552.8,4552.7,20.6629]
[1755442552439,1.4201,4552.8,4552.7,21.3608]
[1755442552650,1.0194,4552.8,4552.7,21.3608]
[1755442552850,0.4036,4552.8,4552.7,21.4361]
[1755442553554,0.4036,4552.8,4552.7,21.3608]
[1755442553754,1.0194,4552.8,4552.7,21.3608]
[1755442554447,1.1759,4552.8,4552.7,21.3608]
[1755442554750,1.0194,4552.8,4552.7,21.3608]
[1755442555751,0.6567,4552.8,4552.7,21.3608]
[1755442556548,1.0194,4552.8,4552.7,21.3608]
[1755442558454,1.4201,4552.8,4552.7,21.3608]
[1755442558758,1.4201,4552.8,4552.7,0.9913]
[1755442558950,1.4201,4552.8,4552.7,20.6609]
[1755442559653,0.8154,4552.5,4552.4,2.4234449]
[1755442559957,1.4201,4552.5,4552.4,23.1119449]
[1755442562250,1.4201,4552.5,4552.4,2.8659449]
[1755442562455,1.4201,4552.5,4552.4,23.1119449]
[1755442562858,1.4201,4552.5,4552.4,23.1109449]
[1755442563253,1.4201,4552.5,4552.4,2.8659449]
[1755442563453,1.4201,4552.5,4552.4,23.1109449]
[1755442564652,0.242,4552.5,4552.4,23.1109449]
[1755442564855,0.242,4553.1,4553.0,0.9913]
[1755442565053,0.242,4553.1,4553.0,23.1109449]
[1755442565259,1.0194,4553.4,4553.3,0.5389]
[1755442565559,1.0194,4553.4,4553.3,23.1099449]
[1755442565860,1.4201,4553.4,4553.3,20.407]
[1755442566059,1.4201,4553.4,4553.3,21.3558]
[1755442566263,1.4201,4553.4,4553.3,20.6579]
[1755442566460,1.4201,4553.4,4553.3,20.244]
[1755442566658,0.5712,4553.4,4553.1,0.2509]
[1755442566953,1.4201,4553.3,4553.2,21.3548]
[1755442567158,1.4201,4553.3,4553.2,20.9123]
[1755442567360,1.4201,4553.3,4553.2,21.2343]
[1755442567962,1.4201,4553.3,4553.2,21.3548]
[1755442568162,1.4201,4553.3,4553.2,21.3538]
[1755442570466,1.4201,4553.3,4553.2,1.1118]
[1755442570666,0.8489,4552.9,4552.5,4.9619449]
[1755442570964,1.4201,4552.7,4552.6,20.403]
[1755442571367,1.4201,4552.7,4552.6,20.6539]
[1755442571563,0.5712,4552.1,4552.0,4.3196]
[1755442571865,1.4201,4552.1,4552.0,24.5596]
[1755442572567,1.1759,4552.1,4552.0,24.5596]
[1755442575367,1.4201,4552.1,4552.0,26.3137449]
[1755442576364,0.6567,4552.1,4552.0,26.3107449]
[1755442576573,0.6047,4553.0,4552.2,0.5729]
[1755442576868,1.4201,4553.0,4552.9,2.4900449]
[1755442577060,1.4201,4553.0,4552.9,22.4050449]
[1755442577258,1.4201,4553.0,4552.9,20.237]
[1755442577471,1.4359,4552.4,4552.3,1.9171449]
[1755442577767,1.4359,4552.4,4552.3,22.1531449]
[1755442577973,0.5712,4552.4,4552.0,3.2078]
[1755442578159,0.5769,4552.2,4552.1,20.236]
[1755442578364,1.4258,4552.2,4552.1,0.4198]
[1755442578566,1.4258,4552.2,4552.1,22.4099449]
[1755442578966,1.4258,4552.2,4552.1,23.1031449]
[1755442579364,1.1914,4552.2,4552.1,23.1031449]
[1755442579566,1.4258,4552.2,4552.1,23.1031449]
[1755442585972,1.4258,4552.2,4552.1,2.8671449]
[1755442586271,1.4258,4552.2,4552.1,23.0991449]
[1755442587573,1.4258,4552.2,4552.1,22.4049449]
[1755442588469,1.4258,4551.9,4551.8,0.7431]
[1755442588669,1.4258,4551.9,4551.8,20.6498]
[1755442589473,1.4258,4551.9,4551.8,20.9731]
[1755442590174,1.4258,4551.9,4551.8,21.2211]
[1755442590672,1.0691,4551.9,4551.8,21.343]
[1755442590870,0.3567,4552.5,4552.2,0.3699]
[1755442591072,1.1914,4552.4,4552.3,21.342]
[1755442591374,1.4258,4552.4,4552.3,21.342]
[1755442593570,1.4258,4552.4,4552.3,20.229]
[1755442594074,1.4258,4552.4,4552.3,20.4883]
[1755442594271,1.4258,4552.4,4552.3,20.6488]
[1755442596070,1.4258,4552.4,4552.3,20.9721]
[1755442597379,1.4258,4552.4,4552.3,20.6488]
[1755442598380,1.4258,4552.4,4552.3,21.342]
[1755442598578,1.0232,4552.4,4552.3,23.0961449]
[1755442599577,1.4258,4552.4,4552.3,23.0961449]
[1755442601383,1.4258,4552.4,4552.3,21.342]
[1755442601782,1.4258,4552.4,4552.3,20.6488]
[1755442602385,1.4258,4552.4,4552.3,20.229]
[1755442602885,1.4258,4552.4,4552.3,20.4883]
[1755442603384,1.4258,4552.4,4552.3,20.6488]
[1755442603586,1.4258,4552.4,4552.3,20.9721]
[1755442603988,1.4258,4552.4,4552.3,0.7431]
[1755442604188,1.4258,4552.4,4552.3,20.9651]
[1755442604787,1.4258,4552.4,4552.3,20.6418]
[1755442605587,0.1623,4551.5,4551.4,0.2593]
[1755442605787,1.4258,4551.5,4551.4,20.6398]
[1755442606284,0.4087,4550.9,4550.8,2.8671449]
[1755442606483,1.0232,4550.9,4550.8,23.0871449]
[1755442606682,0.2578,4550.9,4550.8,23.1633449]
[1755442607089,0.2578,4550.9,4550.8,2.9433449]
[1755442607382,0.2578,4550.9,4550.8,23.1623449]
[1755442607583,0.5293,4551.3,4551.2,0.5227]
[1755442607785,0.5293,4551.3,4551.2,23.0706449]
[1755442608085,0.7882,4551.3,4551.2,23.0706449]
[1755442608279,1.0243,4551.3,4551.2,23.0706449]
[1755442610283,1.43,4551.3,4551.2,23.0706449]
[1755442611388,1.43,4551.3,4551.2,20.994]
[1755442611588,1.43,4551.3,4551.2,20.873]
[1755442611982,1.43,4551.3,4551.2,21.1954]
[1755442612182,0.2361,4551.1,4551.0,0.654]
[1755442612383,0.2361,4551.1,4551.0,21.3154]
[1755442612579,0.4087,4551.1,4551.0,21.3154]
[1755442612878,1.0442,4551.1,4551.0,21.3154]
[1755442613078,0.8314,4551.6,4551.5,0.4017]
[1755442613394,1.0733,4551.6,4551.5,21.3154]
[1755442613787,1.4499,4551.6,4551.5,21.3154]
[1755442615600,1.4499,4551.6,4551.5,20.218]
[1755442615783,0.5953,4551.3,4551.2,0.5747]
[1755442616097,1.4499,4551.3,4551.2,21.1924]
[1755442616281,1.4499,4551.3,4551.2,21.3134]
[1755442617389,0.2361,4551.9,4551.8,0.4017]
[1755442617591,0.4087,4551.9,4551.8,23.0675449]
[1755442617888,1.0442,4551.9,4551.8,23.0675449]
[1755442618687,1.4499,4551.9,4551.8,23.0675449]
[1755442619695,1.0442,4551.9,4551.8,23.0675449]
[1755442619888,0.6676,4551.9,4551.8,23.0675449]
[1755442620598,1.4499,4551.9,4551.8,23.0675449]
[1755442620788,1.208,4551.9,4551.8,23.0675449]
[1755442621293,1.0442,4551.9,4551.8,23.0675449]
[1755442622592,1.2138,4552.5,4552.4,0.5227]
[1755442622791,1.4499,4552.5,4552.4,1.0974]
[1755442623295,1.4499,4552.5,4552.4,0.7368]
[1755442623493,1.4499,4552.5,4552.4,0.4144]
[1755442623892,0.9719,4552.5,4551.9,2.0064449]
[1755442624102,0.9719,4552.0,4551.9,2.4909449]
[1755442624300,1.4499,4552.0,4551.9,22.7009449]
[1755442624799,1.4499,4552.0,4551.9,23.0615449]
[1755442625801,0.6127,4551.9,4551.7,0.3224]
[1755442626000,1.4499,4551.8,4551.7,0.7368]
[1755442626202,1.4499,4551.8,4551.7,20.9448]
[1755442632002,1.2138,4551.8,4551.7,21.3024]
[1755442632502,1.4499,4551.8,4551.7,21.3024]
[1755442632995,1.4499,4551.8,4551.7,20.859]
[1755442633201,1.4499,4551.8,4551.7,21.1814]
[1755442634699,1.4499,4551.8,4551.5,0.2523]
[1755442634903,0.5953,4551.5,4551.4,0.4144]
[1755442635204,1.4499,4551.5,4551.4,0.4144]
[1755442635405,1.4499,4551.5,4551.4,20.3631]
[1755442635703,1.4499,4551.5,4551.4,20.6154]
[1755442636807,1.4499,4551.5,4551.4,20.9378]
[1755442637206,1.4499,4551.5,4551.4,21.2984]
[1755442637808,1.4499,4551.5,4551.4,21.2964]
[1755442639209,0.243,4552.0,4551.5,0.2493]
[1755442639404,3.2078,4552.1,4551.8,2.2932449]
[1755442639405,0.243,4551.9,4551.8,2.2932449]
[1755442639723,0.243,4551.9,4551.8,22.5667449]
[1755442640009,0.243,4551.9,4551.8,23.1383449]
[1755442642109,0.243,4552.0,4551.9,1.1862]
[1755442642311,0.83192055,4552.0,4551.9,1.1862]
[1755442642909,0.243,4552.0,4551.9,1.1862]
[1755442644601,0.4104,4552.0,4551.9,1.1862]
[1755442644808,1.0324,4552.0,4551.9,1.1107]
[1755442645108,1.4623,4552.0,4551.9,1.1107]
[1755442646214,2.05139311,4552.0,4551.9,1.1107]
[1755442647219,1.79379311,4552.0,4551.9,1.1107]
[1755442650708,2.05139311,4552.0,4551.9,1.1107]
[1755442652012,1.4623,4552.0,4551.9,1.1107]
[1755442655717,0.1674,4551.8,4550.8,0.43926]
[1755442655913,5.00170941,4551.7,4551.6,0.7884]
[1755442656116,0.83220941,4551.7,4551.6,1.1107]
[1755442656413,0.7984,4551.7,4551.6,1.1107]
[1755442656718,1.0324,4551.7,4551.6,1.1107]
[1755442657614,1.4623,4551.7,4551.6,1.1107]
[1755442658312,1.4623,4551.7,4551.6,21.2947]
[1755442659321,1.4623,4551.7,4551.6,20.9724]
[1755442659922,1.4623,4551.7,4551.6,21.2947]
[1755442662118,1.0324,4551.7,4551.6,21.2947]
[1755442662326,3.6092,4552.2,4552.1,0.5391]
[1755442662519,5.01619088,4552.2,4552.1,21.2907]
[1755442662925,5.25919088,4552.2,4552.1,21.2907]
[1755442663921,5.00159088,4552.2,4552.1,21.2907]
[1755442664127,1.0324,4552.2,4552.1,21.2907]
[1755442664825,1.29,4552.2,4552.1,21.2907]
[1755442665222,1.4623,4552.2,4552.1,21.2907]
[1755442666024,0.243,4552.2,4552.1,21.2907]
[1755442666228,0.243,4552.8,4552.7,1.1107]
[1755442666429,1.23339928,4552.8,4552.7,23.0428449]
[1755442666631,1.62139928,4552.8,4552.7,23.0428449]
[1755442666930,1.79369928,4552.8,4552.7,23.0428449]
[1755442667125,0.83199928,4552.8,4552.7,23.0428449]
[1755442667328,0.243,4552.8,4552.7,23.1183449]
[1755442668433,1.031,4552.8,4552.7,23.0428449]
[1755442668622,0.243,4552.8,4552.7,23.0428449]
[1755442668823,1.0342,4552.8,4552.7,23.0428449]
[1755442669430,1.4485,4552.8,4552.7,20.592]
[1755442669630,1.4485,4552.8,4552.7,20.9607]
[1755442669840,1.4485,4552.8,4552.7,21.2827]
[1755442670037,1.1982,4552.8,4552.7,21.2827]
[1755442670438,1.0342,4552.8,4552.7,21.2827]
[1755442671735,0.2426,4553.5,4552.7,20.178]
[1755442671933,0.6582,4553.5,4553.4,1.1009]
[1755442672137,1.0338,4553.5,4553.4,21.2729]
[1755442672636,1.2841,4553.5,4553.4,21.2729]
[1755442673045,1.0338,4553.5,4553.4,21.2729]
[1755442673244,1.4481,4553.5,4553.4,21.2729]
[1755442673738,1.4481,4553.5,4553.1,0.43904]
[1755442673945,1.0338,4552.8,4552.7,6.5019249]
[1755442674144,1.0338,4552.8,4552.7,26.6709249]
[1755442674345,1.0338,4552.8,4552.7,26.2318449]
[1755442674346,1.1978,4552.8,4552.7,26.2318449]
[1755442674551,1.4481,4552.8,4552.7,26.2318449]
[1755442675044,1.1978,4552.8,4552.7,26.2318449]
[1755442675441,1.0338,4552.8,4552.7,26.2318449]
[1755442675749,0.2426,4553.5,4553.0,0.68235]
[1755442675939,1.0338,4553.5,4553.4,0.5356]
[1755442676138,1.4481,4553.5,4553.4,21.2679]
[1755442677549,1.4481,4553.5,4553.4,20.3339]
[1755442677844,1.4481,4553.5,4553.4,20.167]
[1755442678540,1.4481,4553.5,4553.4,20.5772]
[1755442678749,1.4481,4553.5,4553.4,20.167]
[1755442679142,1.4481,4553.5,4553.4,21.2679]
[1755442679542,1.4481,4553.5,4553.1,1.7541449]
[1755442679842,1.0325,4553.3,4553.2,20.164]
[1755442680046,0.5796,4553.3,4553.1,20.163]
[1755442680348,1.4481,4553.2,4553.1,20.4063]
[1755442680640,0.5796,4553.2,4553.1,20.163]
[1755442681251,1.4481,4553.2,4553.1,20.163]
[1755442681846,1.4481,4553.2,4553.1,20.4063]
[1755442683845,0.5796,4553.2,4552.6,1.7541449]
[1755442684045,0.3756,4552.9,4552.7,20.16]
[1755442684348,1.4481,4552.8,4552.7,20.16]
[1755442684544,1.4481,4552.8,4552.7,20.5702]
[1755442685041,1.4481,4552.8,4552.7,20.16]
[1755442685957,1.4481,4552.8,4552.7,20.4033]
[1755442686251,1.4481,4552.8,4552.7,20.5702]
[1755442686756,1.4481,4552.8,4552.7,20.3269]
[1755442686946,0.2426,4552.8,4552.7,20.5702]
[1755442687138,3.4581,4553.6,4553.4,0.8135]
[1755442687139,1.4481,4553.5,4553.4,0.8135]
[1755442687448,1.4481,4553.5,4553.4,1.1009]
[1755442687650,1.4481,4553.5,4553.4,0.4102]
[1755442688153,0.5796,4553.3,4553.2,20.158]
[1755442688341,1.4481,4553.3,4553.2,20.158]
[1755442688743,0.5796,4553.0,4552.9,0.4102]
[1755442688944,1.4481,4553.0,4552.9,0.4102]
[1755442689153,1.4481,4553.0,4552.9,1.1009]
[1755442690857,1.4481,4553.0,4552.9,0.4102]
[1755442691148,0.8299,4553.0,4552.3,0.2433]
[1755442691354,1.4481,4552.4,4552.3,0.4102]
[1755442691653,1.4481,4552.4,4552.3,0.1669]
[1755442691850,0.8685,4552.3,4551.8,0.5653]
[1755442692054,1.4481,4551.9,4551.8,0.7322]
[1755442692356,1.4481,4551.9,4551.8,21.2559]
[1755442695659,0.2426,4552.5,4551.9,1.07976]
[1755442695864,0.2426,4552.5,4552.4,2.8550449]
[1755442696157,1.1978,4552.5,4552.4,2.8550449]
[1755442696358,1.4481,4552.5,4552.4,1.1009]
[1755442698561,0.4132,4552.5,4552.4,1.1009]
[1755442698761,0.2426,4552.5,4552.4,2.9304449]
[1755442699462,0.4124,4552.5,4552.4,2.8550449]
[1755442699660,1.0358,4552.5,4552.4,2.8550449]
[1755442702365,1.4519,4552.5,4552.4,1.1009]
[1755442703066,1.0358,4552.5,4552.4,1.1009]
[1755442707170,1.1984,4552.5,4552.4,1.1009]
[1755442707467,1.4519,4552.5,4552.4,1.1009]
[1755442707876,0.6518,4552.5,4552.4,1.1009]
[1755442708170,1.4519,4552.5,4552.4,1.1009]
[1755442711772,0.5073,4553.1,4552.5,0.5674]
[1755442712069,1.0791,4553.1,4553.0,0.7385]
[1755442712271,1.67145556,4553.1,4553.0,0.7385]
[1755442712470,2.05545556,4553.1,4553.0,0.7385]
[1755442712871,2.05545556,4553.1,4553.0,0.417]
[1755442713071,2.05545556,4553.1,4552.7,0.3215]
[1755442713273,1.4631,4552.8,4552.7,0.417]
[1755442713472,2.05545556,4552.8,4552.7,0.417]
[1755442714373,2.05545556,4552.8,4552.7,0.7385]
[1755442717874,0.5718,4551.8,4551.7,3.2078]
[1755442718174,1.7541449,4554.0,4551.7,3.2078]
[1755442718175,0.663,4552.2,4552.1,0.5329]
[1755442718482,1.01634984,4552.2,4552.1,21.2403]
[1755442718673,0.2538,4552.2,4552.1,21.3153]
[1755442718871,0.4236,4552.6,4552.5,0.3618]
[1755442719072,1.01626862,4552.6,4552.5,2.8544449]
[1755442719373,0.2538,4553.3,4553.2,0.2723]
[1755442719677,0.2538,4553.3,4553.2,22.4746449]
[1755442720176,0.663,4553.3,4553.2,22.4746449]
[1755442720376,1.4631,4553.3,4553.2,20.7205]
[1755442720875,0.2538,4553.3,4553.2,22.4746449]
[1755442721065,0.663,4553.7,4553.6,0.5182]
[1755442721270,0.663,4553.7,4553.6,22.4736449]
[1755442721871,1.047,4553.7,4553.6,22.4736449]
[1755442722273,0.17220852,4555.6,4553.6,22.4736449]
[1755442722274,0.2538,4554.0,4553.9,0.2723]
[1755442722576,0.2538,4554.0,4553.9,20.7175]
[1755442724576,0.2538,4554.0,4553.9,22.4716449]
[1755442726174,0.663,4554.0,4553.9,22.4716449]
[1755442726371,1.4631,4554.0,4553.9,22.4083449]
[1755442726677,1.4631,4554.0,4553.9,20.3031]
[1755442727780,1.4631,4554.0,4553.9,20.132]
[1755442727976,0.3985,4553.6,4553.3,3.2078]
[1755442728277,1.1935,4553.5,4553.4,20.2874]
[1755442728579,1.4293,4553.5,4553.4,20.2874]
[1755442729083,1.4293,4553.5,4553.4,20.5232]
[1755442729274,1.4293,4553.5,4553.4,20.5869]
[1755442729580,1.4293,4553.5,4553.4,20.6888]
[1755442731377,1.4293,4553.5,4553.4,20.5869]
[1755442731579,1.4293,4553.5,4553.4,20.13]
[1755442732377,0.5658,4553.5,4552.8,36.5869449]
[1755442732587,1.4293,4552.9,4552.8,3.2078]
[1755442732780,1.4293,4552.9,4552.8,23.3348]
[1755442733581,1.4293,4552.9,4552.8,23.7917]
[1755442734882,1.4293,4552.9,4552.8,23.4922]
[1755442735478,1.4293,4552.9,4552.8,23.3348]
[1755442735783,1.4293,4552.9,4552.8,20.127]
[1755442737074,0.8635,4552.8,4552.3,3.2078]
[1755442737274,0.8635,4552.8,4551.9,0.2995]
[1755442737275,0.3985,4552.1,4552.0,0.4569]
[1755442737483,1.4293,4552.1,4552.0,20.5819]
[1755442737691,1.4293,4552.1,4552.0,20.2824]
[1755442738188,1.4293,4552.1,4552.0,20.5182]
[1755442738389,1.4293,4552.1,4552.0,20.5819]
[1755442739285,1.4293,4552.1,4552.0,20.2824]
[1755442739882,1.4293,4552.1,4552.0,20.125]
[1755442740083,1.4293,4552.1,4552.0,20.5819]
[1755442740281,0.2472,4552.1,4552.0,22.4379449]
[1755442740585,1.4293,4552.1,4552.0,20.6838]
[1755442740784,1.4293,4552.1,4552.0,22.4379449]
[1755442740987,0.2472,4552.1,4552.0,22.4379449]
[1755442741687,3.2078,4553.2,4552.1,0.3214]
[1755442741880,0.2472,4553.5,4553.1,2.3129449]
[1755442742193,1.1821,4553.8,4553.7,0.5588]
[1755442742381,1.1821,4553.8,4553.7,20.6818]
[1755442742582,1.4293,4553.8,4553.7,20.6818]
[1755442743185,0.2472,4553.8,4553.7,20.6818]
[1755442744492,0.4145,4553.8,4553.7,20.6818]
[1755442746795,0.6515,4553.8,4553.7,20.6818]
[1755442747084,1.032,4553.8,4553.7,20.6818]
[1755442747290,1.4293,4553.8,4553.7,20.6818]
[1755442749896,1.1935,4554.3,4554.2,0.323]
[1755442750091,1.4293,4554.3,4554.2,20.6778]
[1755442752891,1.1935,4554.3,4554.2,20.6778]
[1755442753090,1.4293,4554.3,4554.2,20.6778]
[1755442755589,1.4293,4554.3,4554.2,20.6141]
[1755442756302,1.4293,4554.3,4554.2,20.6778]
[1755442757002,1.4293,4554.3,4554.2,20.119]
[1755442757202,1.4293,4554.3,4554.2,20.2764]
[1755442757500,1.4293,4554.3,4554.2,20.6778]
[1755442759005,1.4293,4554.3,4554.2,20.2764]
[1755442759400,1.4293,4554.3,4554.2,20.5246]
[1755442759700,1.4293,4554.3,4554.2,20.5882]
[1755442763299,1.4293,4554.3,4554.2,20.6899]
[1755442766206,1.4293,4554.3,4554.2,0.4692]
[1755442766405,0.252,4554.2,4554.1,0.5765]
[1755442766600,0.252,4554.2,4554.1,22.4396449]
[1755442768810,4.6539,4554.9,4554.8,0.5765]
[1755442768994,4.6539,4554.9,4554.8,20.6835]
[1755442771710,0.252,4554.9,4554.8,20.6835]
[1755442774003,1.193,4554.9,4554.8,20.6835]
[1755442774203,1.4461,4554.9,4554.8,20.6835]
[1755442774403,1.4461,4554.9,4554.8,20.6795]
[1755442783716,1.0226,4554.9,4554.8,20.6795]
[1755442784023,1.4461,4554.9,4554.8,20.6795]
[1755442787318,0.252,4554.7,4554.4,3.2078]
[1755442787617,3.2078,4555.4,4554.4,5.2913449]
[1755442787618,0.252,4554.5,4554.4,5.2913449]
[1755442787817,0.252,4554.5,4554.4,25.3863449]
[1755442788120,0.252,4554.5,4554.4,25.6385449]
[1755442791622,0.8535,4555.3,4554.4,25.7616649]
[1755442791822,1.8631463,4555.2,4555.1,0.165]
[1755442792124,1.4445,4555.2,4555.1,20.5745]
[1755442794327,2.03300396,4555.2,4555.1,20.5745]
[1755442794820,2.03300396,4555.2,4555.1,20.2569]
[1755442796227,2.03300396,4555.2,4555.1,20.5091]
[1755442798833,2.03300396,4555.2,4555.1,20.5734]
[1755442799329,2.03300396,4555.2,4555.1,20.6774]
[1755442800429,0.4263,4554.5,4554.4,3.2078]
[1755442800630,1.4445,4554.5,4554.4,3.2078]
[1755442800823,0.2566,4554.1,4554.0,0.0643]
[1755442801018,4.1649,4554.7,4554.6,0.1639]
[1755442801228,4.75397757,4554.7,4554.6,0.4804]
[1755442801429,5.24137757,4554.7,4554.6,0.4804]
[1755442801726,4.38787757,4554.7,4554.5,20.088]
[1755442801928,0.2515,4554.5,4554.1,0.2522]
[1755442802130,1.4445,4554.3,4554.2,20.087]
[1755442802325,0.591,4554.0,4553.9,2.2345449]
[1755442802526,1.4445,4554.0,4553.9,22.3215449]
[1755442802729,1.4445,4554.0,4553.9,22.3226449]
[1755442803025,0.6778,4554.6,4554.5,0.165]
[1755442803231,0.2515,4554.6,4554.5,22.4255449]
[1755442803431,0.4212,4554.6,4554.5,22.4255449]
[1755442803731,1.4445,4554.6,4554.5,22.4255449]
[1755442804633,1.4445,4554.6,4554.5,0.1639]
[1755442805032,0.591,4554.3,4554.2,0.4804]
[1755442805330,1.4445,4554.3,4554.2,20.5664]
[1755442805822,1.4445,4554.3,4554.2,0.4804]
[1755442806020,1.4445,4554.3,4554.2,20.2499]
[1755442806424,1.4445,4554.3,4554.2,20.5021]
[1755442806624,1.4445,4554.3,4554.2,20.5664]
[1755442806826,1.4445,4554.3,4554.2,20.2499]
[1755442808534,0.2515,4554.3,4554.2,20.6685]
[1755442808827,1.4445,4554.3,4554.2,20.6685]
[1755442809928,0.6778,4554.3,4554.2,20.6685]
[1755442810630,1.2798,4554.3,4554.2,20.6685]
[1755442811632,1.4445,4554.3,4554.2,20.6685]
[1755442811828,1.4445,4554.3,4554.2,20.5657]
[1755442812830,1.4445,4554.3,4554.2,20.5021]
[1755442813024,1.4445,4554.3,4554.2,20.086]
[1755442813228,1.4445,4554.3,4554.2,20.5021]
[1755442813430,1.4445,4554.3,4554.2,0.4797]
[1755442813631,1.4445,4554.3,4554.2,20.2469]
[1755442813828,1.4445,4554.3,4554.1,3.2078]
[1755442814134,1.4445,4554.3,4554.2,20.083]
[1755442815731,1.4445,4554.3,4554.1,3.2078]
[1755442815934,1.4445,4554.3,4554.2,20.082]
[1755442816334,1.4445,4554.2,4554.1,3.2078]
[1755442817737,0.6778,4554.2,4554.1,3.7898]
[1755442817939,0.2515,4554.2,4554.1,3.7898]
[1755442818141,0.4118,4554.2,4554.1,3.7898]
[1755442818539,1.4483,4554.2,4554.1,3.7898]
[1755442819234,1.4483,4554.2,4554.1,5.5439449]
[1755442819740,0.2515,4554.2,4554.1,5.5439449]
[1755442819934,0.2395,4554.5,4554.1,5.4803449]
[1755442820137,0.6544,4554.8,4554.7,0.2703]
[1755442820337,1.4363,4554.8,4554.7,22.4217449]
[1755442820533,1.4363,4554.8,4554.7,20.6676]
[1755442821137,0.2395,4554.8,4554.7,20.6676]
[1755442821338,0.6544,4554.8,4554.7,20.6676]
[1755442821643,1.4363,4554.8,4554.7,20.6676]
[1755442822438,0.8252,4554.8,4554.7,20.6676]
[1755442822740,0.2395,4554.8,4554.7,20.6676]
[1755442824135,0.3998,4554.8,4554.7,20.6676]
[1755442824535,0.6544,4554.8,4554.7,20.6676]
[1755442824839,1.0178,4554.8,4554.7,20.6676]
[1755442825041,1.2655,4554.8,4554.7,20.6676]
[1755442825238,0.6544,4554.8,4554.7,20.6676]
[1755442825542,1.4363,4554.8,4554.7,20.6676]
[1755442828242,1.2655,4554.8,4554.7,20.6676]
[1755442828438,0.2395,4554.8,4554.7,20.6676]
[1755442828745,0.7632,4554.8,4554.7,20.6676]
[1755442828947,1.0178,4554.8,4554.7,20.6676]
[1755442829144,1.2655,4554.8,4554.7,20.6676]
[1755442830147,1.4363,4554.8,4554.7,20.6676]
[1755442831443,0.2395,4554.8,4554.7,20.6676]